[Event "*** Titled Tuesday Blitz"]
[Site "Chess.com"]
[Date "2020.11.10"]
[Round "5"]
[White "NikolaGry"]
[Black "Pliukha_Mikhail"]
[Result "1-0"]
[WhiteElo "2627"]
[BlackElo "2477"]
[TimeControl "180+1"]
[EndTime "10:59:47 PST"]
[Termination "NikolaGry won by checkmate"]

1. b3 {[%clk 0:03:00.9]} 1... d5 {[%clk 0:02:57.8]} 2. Bb2 {[%clk 0:03:01]} 2...
Bg4 {[%clk 0:02:58.4]} 3. Nf3 {[%clk 0:03:00.8]} 3... Bxf3 {[%clk 0:02:58.3]} 4.
gxf3 {[%clk 0:03:01]} 4... Nf6 {[%clk 0:02:52.2]} 5. e3 {[%clk 0:03:00.8]} 5...
c5 {[%clk 0:02:52.4]} 6. Nc3 {[%clk 0:02:56.9]} 6... Nc6 {[%clk 0:02:48.5]} 7.
Bg2 {[%clk 0:02:56.3]} 7... e5 {[%clk 0:02:46.6]} 8. O-O {[%clk 0:02:52.4]} 8...
Be7 {[%clk 0:02:46]} 9. Ne2 {[%clk 0:02:52.1]} 9... O-O {[%clk 0:02:44.4]} 10.
d3 {[%clk 0:02:48.2]} 10... Nh5 {[%clk 0:02:15.6]} 11. Ng3 {[%clk 0:02:45.4]}
11... Nf6 {[%clk 0:02:08.3]} 12. c4 {[%clk 0:02:40.5]} 12... d4 {[%clk
0:02:07.8]} 13. Qe2 {[%clk 0:02:22.1]} 13... Re8 {[%clk 0:02:06.5]} 14. Kh1
{[%clk 0:02:21]} 14... Bf8 {[%clk 0:02:06.2]} 15. Rg1 {[%clk 0:02:20.2]} 15...
Kh8 {[%clk 0:02:06.8]} 16. Bh3 {[%clk 0:02:15.3]} 16... g6 {[%clk 0:01:54]} 17.
Rad1 {[%clk 0:02:12.4]} 17... Bg7 {[%clk 0:01:53.1]} 18. Bc1 {[%clk 0:02:11.6]}
18... Qc7 {[%clk 0:01:42.1]} 19. Rg2 {[%clk 0:02:04.6]} 19... Rad8 {[%clk
0:01:42.2]} 20. e4 {[%clk 0:02:04.2]} 20... Qa5 {[%clk 0:01:39.2]} 21. Rdg1
{[%clk 0:01:54.6]} 21... Qc7 {[%clk 0:01:25.7]} 22. Nf5 {[%clk 0:01:50.1]} 22...
gxf5 {[%clk 0:01:17.8]} 23. Rxg7 {[%clk 0:01:48.7]} 23... f4 {[%clk 0:01:18.4]}
24. Qf1 {[%clk 0:01:35.9]} 24... Rg8 {[%clk 0:01:02.7]} 25. Qg2 {[%clk
0:01:32.3]} 25... Qe7 {[%clk 0:00:51.5]} 26. Bf5 {[%clk 0:01:05.6]} 26... Qf8
{[%clk 0:00:45.7]} 27. Rxg8+ {[%clk 0:01:05.3]} 27... Nxg8 {[%clk 0:00:38.2]}
28. a3 {[%clk 0:00:57.5]} 28... Qh6 {[%clk 0:00:36.5]} 29. b4 {[%clk 0:00:54.6]}
29... b6 {[%clk 0:00:33.7]} 30. Bd2 {[%clk 0:00:51.1]} 30... Nf6 {[%clk
0:00:32.1]} 31. Qh3 {[%clk 0:00:48.7]} 31... Qxh3 {[%clk 0:00:26.6]} 32. Bxh3
{[%clk 0:00:48.7]} 32... Rg8 {[%clk 0:00:24.7]} 33. Rb1 {[%clk 0:00:48.2]} 33...
Rb8 {[%clk 0:00:22.4]} 34. bxc5 {[%clk 0:00:45.6]} 34... bxc5 {[%clk 0:00:23.3]}
35. Rb5 {[%clk 0:00:45.6]} 35... Rxb5 {[%clk 0:00:17.5]} 36. cxb5 {[%clk
0:00:45.7]} 36... Nd8 {[%clk 0:00:16.5]} 37. Ba5 {[%clk 0:00:39.4]} 37... Ne6
{[%clk 0:00:11]} 38. Bxe6 {[%clk 0:00:34.5]} 38... fxe6 {[%clk 0:00:11.9]} 39.
Bc7 {[%clk 0:00:33]} 39... Nd7 {[%clk 0:00:12]} 40. Kg1 {[%clk 0:00:31]} 40...
Kg7 {[%clk 0:00:12.1]} 41. a4 {[%clk 0:00:31.1]} 41... Kf6 {[%clk 0:00:10.2]}
42. a5 {[%clk 0:00:30.8]} 42... c4 {[%clk 0:00:09]} 43. dxc4 {[%clk 0:00:29.5]}
43... d3 {[%clk 0:00:09.1]} 44. Kf1 {[%clk 0:00:29.1]} 44... Nc5 {[%clk
0:00:08.5]} 45. a6 {[%clk 0:00:28.2]} 45... Na4 {[%clk 0:00:02.3]} 46. Ke1
{[%clk 0:00:24.2]} 46... Nb2 {[%clk 0:00:01.1]} 47. b6 {[%clk 0:00:23.4]} 47...
Nxc4 {[%clk 0:00:02]} 48. bxa7 {[%clk 0:00:20.5]} 48... d2+ {[%clk 0:00:02.5]}
49. Kd1 {[%clk 0:00:20.3]} 49... Kg5 {[%clk 0:00:02.5]} 50. a8=Q {[%clk
0:00:19.7]} 50... Kh4 {[%clk 0:00:03.4]} 51. Qc6 {[%clk 0:00:19]} 51... Kh3
{[%clk 0:00:03.6]} 52. Qxc4 {[%clk 0:00:18.8]} 52... h5 {[%clk 0:00:04.5]} 53.
Qf1+ {[%clk 0:00:17.4]} 53... Kxh2 {[%clk 0:00:04.9]} 54. Bxe5 {[%clk 0:00:17]}
54... h4 {[%clk 0:00:05.7]} 55. Bxf4# {[%clk 0:00:17.1]} 1-0

[Event "*** Titled Tuesday Blitz"]
[Site "Chess.com"]
[Date "2020.11.10"]
[Round "5"]
[White "PattyCastillo"]
[Black "GMJustin"]
[Result "0-1"]
[WhiteElo "1963"]
[BlackElo "2324"]
[TimeControl "180+1"]
[EndTime "10:59:49 PST"]
[Termination "GMJustin won on time"]

1. d4 {[%clk 0:03:00.9]} 1... d6 {[%clk 0:02:55.3]} 2. Nc3 {[%clk 0:02:59.7]}
2... g6 {[%clk 0:02:51.3]} 3. e4 {[%clk 0:02:59.3]} 3... Bg7 {[%clk 0:02:50.4]}
4. Nf3 {[%clk 0:02:54.2]} 4... Nf6 {[%clk 0:02:37.7]} 5. Be3 {[%clk 0:02:42.3]}
5... c6 {[%clk 0:02:22.3]} 6. Qd2 {[%clk 0:02:41.8]} 6... b5 {[%clk 0:02:10.3]}
7. Bd3 {[%clk 0:02:39.7]} 7... Bb7 {[%clk 0:01:46.7]} 8. O-O {[%clk 0:02:35.4]}
8... O-O {[%clk 0:01:41]} 9. Rad1 {[%clk 0:02:34.7]} 9... Qc7 {[%clk 0:01:14.8]}
10. h3 {[%clk 0:02:31.8]} 10... e5 {[%clk 0:01:11.3]} 11. a4 {[%clk 0:02:10.3]}
11... a6 {[%clk 0:01:01.4]} 12. Rfe1 {[%clk 0:02:05.7]} 12... exd4 {[%clk
0:00:46]} 13. Nxd4 {[%clk 0:02:04.7]} 13... b4 {[%clk 0:00:41.1]} 14. Nce2
{[%clk 0:02:00]} 14... c5 {[%clk 0:00:39.6]} 15. Nf3 {[%clk 0:01:56.8]} 15... c4
{[%clk 0:00:37.2]} 16. a5 {[%clk 0:01:41.2]} 16... cxd3 {[%clk 0:00:34]} 17.
cxd3 {[%clk 0:01:40.5]} 17... Qxa5 {[%clk 0:00:32]} 18. Ra1 {[%clk 0:01:37.5]}
18... Qc7 {[%clk 0:00:29.9]} 19. Rec1 {[%clk 0:01:35.9]} 19... Qd7 {[%clk
0:00:27.4]} 20. Qxb4 {[%clk 0:01:35.9]} 20... Nc6 {[%clk 0:00:27.4]} 21. Qa4
{[%clk 0:01:32.7]} 21... d5 {[%clk 0:00:23.6]} 22. Ned4 {[%clk 0:01:16.1]} 22...
Nxd4 {[%clk 0:00:19]} 23. Nxd4 {[%clk 0:01:14.5]} 23... Qxa4 {[%clk 0:00:18.8]}
24. Rxa4 {[%clk 0:01:14.8]} 24... dxe4 {[%clk 0:00:19.2]} 25. Rc7 {[%clk
0:01:12.5]} 25... Bd5 {[%clk 0:00:19.3]} 26. dxe4 {[%clk 0:01:10.9]} 26... Bxe4
{[%clk 0:00:19.3]} 27. Bg5 {[%clk 0:01:07.3]} 27... Rfc8 {[%clk 0:00:18.2]} 28.
Rxc8+ {[%clk 0:01:04]} 28... Rxc8 {[%clk 0:00:17.6]} 29. Rxa6 {[%clk 0:00:56.6]}
29... Nd5 {[%clk 0:00:17.2]} 30. Nb5 {[%clk 0:00:48.7]} 30... Rb8 {[%clk
0:00:15.8]} 31. Nd6 {[%clk 0:00:44.9]} 31... Bd3 {[%clk 0:00:15.7]} 32. Ra5
{[%clk 0:00:38.8]} 32... Nb4 {[%clk 0:00:09.2]} 33. b3 {[%clk 0:00:35.2]} 33...
h6 {[%clk 0:00:09.3]} 34. Bf4 {[%clk 0:00:31.4]} 34... Nc6 {[%clk 0:00:09.1]}
35. Rc5 {[%clk 0:00:27.6]} 35... Rb6 {[%clk 0:00:05.8]} 36. Nc8 {[%clk
0:00:26.2]} 36... Ra6 {[%clk 0:00:05.9]} 37. Rd5 {[%clk 0:00:20.5]} 37... Kh7
{[%clk 0:00:02.6]} 38. Rxd3 {[%clk 0:00:20.1]} 38... Nb4 {[%clk 0:00:02.7]} 39.
Re3 {[%clk 0:00:18.5]} 39... Ra1+ {[%clk 0:00:02.7]} 40. Kh2 {[%clk 0:00:18.4]}
40... Nd5 {[%clk 0:00:03.4]} 41. Rf3 {[%clk 0:00:17.1]} 41... Nxf4 {[%clk
0:00:03.9]} 42. Rxf4 {[%clk 0:00:17.3]} 42... Be5 {[%clk 0:00:04]} 43. g3 {[%clk
0:00:16.1]} 43... Bxf4 {[%clk 0:00:04.6]} 44. gxf4 {[%clk 0:00:16.3]} 44... Rb1
{[%clk 0:00:05.3]} 45. Nd6 {[%clk 0:00:15.3]} 45... Rxb3 {[%clk 0:00:05.5]} 46.
Nxf7 {[%clk 0:00:15.4]} 46... Rf3 {[%clk 0:00:05.6]} 47. Ne5 {[%clk 0:00:11.5]}
47... Rxf4 {[%clk 0:00:05.7]} 48. Kg3 {[%clk 0:00:11.3]} 48... Rf5 {[%clk
0:00:06]} 49. f4 {[%clk 0:00:10.9]} 49... g5 {[%clk 0:00:05.5]} 50. Nd3 {[%clk
0:00:08.2]} 50... Rd5 {[%clk 0:00:04.8]} 51. Nf2 {[%clk 0:00:06.4]} 51... gxf4+
{[%clk 0:00:04.3]} 52. Kxf4 {[%clk 0:00:06.7]} 52... Kg6 {[%clk 0:00:05]} 53.
Ng4 {[%clk 0:00:06.8]} 53... Rd4+ {[%clk 0:00:05.1]} 54. Ke5 {[%clk 0:00:05.9]}
54... Ra4 {[%clk 0:00:05.8]} 55. Ke6 {[%clk 0:00:05.2]} 55... Kg5 {[%clk
0:00:06.1]} 56. Kf7 {[%clk 0:00:03.6]} 56... h5 {[%clk 0:00:06.1]} 0-1

[Event "*** Titled Tuesday Blitz"]
[Site "Chess.com"]
[Date "2020.11.10"]
[Round "5"]
[White "LyonBeast"]
[Black "KuzubovYuriy"]
[Result "1-0"]
[WhiteElo "3070"]
[BlackElo "2830"]
[TimeControl "180+1"]
[EndTime "10:59:50 PST"]
[Termination "LyonBeast won by resignation"]

1. d4 {[%clk 0:03:00.9]} 1... Nf6 {[%clk 0:02:58.7]} 2. Bf4 {[%clk 0:02:59.5]}
2... d5 {[%clk 0:02:56.5]} 3. e3 {[%clk 0:02:58]} 3... e6 {[%clk 0:02:53.7]} 4.
Nf3 {[%clk 0:02:55.8]} 4... c5 {[%clk 0:02:53.1]} 5. c3 {[%clk 0:02:55.4]} 5...
Nc6 {[%clk 0:02:50.1]} 6. Nbd2 {[%clk 0:02:54.1]} 6... Nh5 {[%clk 0:02:48.9]} 7.
Be5 {[%clk 0:02:49.8]} 7... f6 {[%clk 0:02:43.9]} 8. Bg3 {[%clk 0:02:49.9]} 8...
g6 {[%clk 0:02:35]} 9. Bd3 {[%clk 0:02:44.1]} 9... cxd4 {[%clk 0:02:33.8]} 10.
cxd4 {[%clk 0:02:36.9]} 10... Nb4 {[%clk 0:02:25.4]} 11. Bb1 {[%clk 0:02:25.7]}
11... Be7 {[%clk 0:02:20.5]} 12. O-O {[%clk 0:02:20.6]} 12... O-O {[%clk
0:02:18.8]} 13. Re1 {[%clk 0:02:13.9]} 13... Nxg3 {[%clk 0:02:07.3]} 14. hxg3
{[%clk 0:02:13.7]} 14... f5 {[%clk 0:01:59.5]} 15. g4 {[%clk 0:02:13.1]} 15...
Bd6 {[%clk 0:01:47.2]} 16. gxf5 {[%clk 0:02:10.5]} 16... gxf5 {[%clk 0:01:39]}
17. g3 {[%clk 0:02:09]} 17... Bd7 {[%clk 0:01:35.4]} 18. Kg2 {[%clk 0:02:04.8]}
18... Rc8 {[%clk 0:01:29.8]} 19. a3 {[%clk 0:02:04.7]} 19... Nc6 {[%clk
0:01:28.3]} 20. Rh1 {[%clk 0:02:03.7]} 20... Be8 {[%clk 0:01:26.4]} 21. Bd3
{[%clk 0:02:00.5]} 21... Bg6 {[%clk 0:01:25.4]} 22. Rh3 {[%clk 0:01:52.1]} 22...
Qe7 {[%clk 0:01:15.1]} 23. Qe2 {[%clk 0:01:49.4]} 23... e5 {[%clk 0:01:04.9]}
24. dxe5 {[%clk 0:01:48.5]} 24... Nxe5 {[%clk 0:01:05]} 25. Nxe5 {[%clk
0:01:38.1]} 25... Bxe5 {[%clk 0:01:03.8]} 26. Nf3 {[%clk 0:01:38.6]} 26... Bf6
{[%clk 0:01:00.8]} 27. Rah1 {[%clk 0:01:33.1]} 27... d4 {[%clk 0:00:52]} 28. Nh4
{[%clk 0:00:51.4]} 28... Bxh4 {[%clk 0:00:51.2]} 29. Rxh4 {[%clk 0:00:52.3]}
29... dxe3 {[%clk 0:00:50.9]} 30. fxe3 {[%clk 0:00:52.1]} 30... Rfe8 {[%clk
0:00:46.3]} 31. Re1 {[%clk 0:00:52.2]} 31... Rcd8 {[%clk 0:00:35.2]} 32. Rf4
{[%clk 0:00:46.7]} 32... Qe5 {[%clk 0:00:34.1]} 33. Bc4+ {[%clk 0:00:41.6]}
33... Kg7 {[%clk 0:00:33.4]} 34. Qf2 {[%clk 0:00:42.5]} 34... Re7 {[%clk
0:00:31.6]} 35. Ba2 {[%clk 0:00:37]} 35... Red7 {[%clk 0:00:30.6]} 36. Re2
{[%clk 0:00:36.9]} 36... Rd1 {[%clk 0:00:29.8]} 37. Bb3 {[%clk 0:00:36.8]} 37...
Rc1 {[%clk 0:00:28.9]} 38. Rd2 {[%clk 0:00:32.1]} 38... Rxd2 {[%clk 0:00:22.4]}
39. Qxd2 {[%clk 0:00:33]} 39... Rb1 {[%clk 0:00:21.5]} 40. Rd4 {[%clk
0:00:24.8]} 40... f4 {[%clk 0:00:19.2]} 41. exf4 {[%clk 0:00:19.3]} 41... Qh5
{[%clk 0:00:17.9]} 42. Rd7+ {[%clk 0:00:18.1]} 42... Kh6 {[%clk 0:00:12.7]} 43.
f5+ {[%clk 0:00:17.9]} 43... Qg5 {[%clk 0:00:13.3]} 44. Qxg5+ {[%clk 0:00:17.7]}
44... Kxg5 {[%clk 0:00:13.4]} 45. fxg6 {[%clk 0:00:17.6]} 45... Rxb2+ {[%clk
0:00:13.8]} 46. Kh3 {[%clk 0:00:17.5]} 46... hxg6 {[%clk 0:00:13.8]} 47. Rxb7
{[%clk 0:00:17.6]} 47... a5 {[%clk 0:00:13.8]} 48. Rb5+ {[%clk 0:00:17.7]} 48...
Kf6 {[%clk 0:00:13.1]} 49. a4 {[%clk 0:00:17.9]} 49... g5 {[%clk 0:00:13.2]} 50.
Kg4 {[%clk 0:00:18.1]} 50... Rb1 {[%clk 0:00:12]} 51. Rb6+ {[%clk 0:00:18]}
51... Ke5 {[%clk 0:00:11.2]} 52. Kxg5 {[%clk 0:00:18.5]} 52... Kd4 {[%clk
0:00:11.2]} 53. g4 {[%clk 0:00:18.5]} 53... Kc3 {[%clk 0:00:11.4]} 54. Rc6+
{[%clk 0:00:15.3]} 54... Kb4 {[%clk 0:00:08.2]} 55. Bc2 {[%clk 0:00:13.8]} 55...
Rf1 {[%clk 0:00:07]} 56. Rb6+ {[%clk 0:00:13.1]} 56... Kc3 {[%clk 0:00:06.2]}
57. Bf5 {[%clk 0:00:13.1]} 57... Ra1 {[%clk 0:00:05.2]} 58. Bd7 {[%clk
0:00:12.1]} 1-0

[Event "*** Titled Tuesday Blitz"]
[Site "Chess.com"]
[Date "2020.11.10"]
[Round "5"]
[White "Sofiia_Hryzlova"]
[Black "bazar-wokzal"]
[Result "0-1"]
[WhiteElo "2296"]
[BlackElo "2502"]
[TimeControl "180+1"]
[EndTime "10:59:53 PST"]
[Termination "bazar-wokzal won by resignation"]

1. c4 {[%clk 0:03:00.9]} 1... f5 {[%clk 0:02:59.6]} 2. g3 {[%clk 0:02:58.4]}
2... Nf6 {[%clk 0:02:58.3]} 3. Nc3 {[%clk 0:02:58.8]} 3... e5 {[%clk 0:02:58.1]}
4. Bg2 {[%clk 0:02:57.9]} 4... Nc6 {[%clk 0:02:56.2]} 5. e4 {[%clk 0:02:33.1]}
5... Bc5 {[%clk 0:02:51.4]} 6. Nge2 {[%clk 0:02:29.9]} 6... O-O {[%clk 0:02:37]}
7. O-O {[%clk 0:02:24]} 7... d6 {[%clk 0:01:53.7]} 8. a3 {[%clk 0:02:22.1]} 8...
a5 {[%clk 0:01:52.8]} 9. b3 {[%clk 0:02:16.1]} 9... Ng4 {[%clk 0:01:44.9]} 10.
Na4 {[%clk 0:01:17.6]} 10... Ba7 {[%clk 0:01:30.7]} 11. Bb2 {[%clk 0:01:16.6]}
11... fxe4 {[%clk 0:01:27.1]} 12. c5 {[%clk 0:01:02.9]} 12... d5 {[%clk
0:01:23.2]} 13. d4 {[%clk 0:00:55.1]} 13... exd3 {[%clk 0:01:15.4]} 14. Qxd3
{[%clk 0:00:53.5]} 14... Be6 {[%clk 0:01:15.7]} 15. h3 {[%clk 0:00:50.8]} 15...
Nf6 {[%clk 0:01:13.2]} 16. Rad1 {[%clk 0:00:46.6]} 16... Qe8 {[%clk 0:01:12.2]}
17. g4 {[%clk 0:00:42.1]} 17... Rd8 {[%clk 0:01:10.8]} 18. Ng3 {[%clk 0:00:40]}
18... e4 {[%clk 0:01:03.2]} 19. Qb5 {[%clk 0:00:38.4]} 19... Rb8 {[%clk
0:00:55.9]} 20. Qe2 {[%clk 0:00:24.6]} 20... b5 {[%clk 0:00:52.5]} 21. cxb6
{[%clk 0:00:22.1]} 21... cxb6 {[%clk 0:00:52.9]} 22. g5 {[%clk 0:00:20.9]} 22...
Nd7 {[%clk 0:00:48.1]} 23. Nc3 {[%clk 0:00:20.5]} 23... Qf7 {[%clk 0:00:43.3]}
24. Qb5 {[%clk 0:00:20.1]} 24... Ne7 {[%clk 0:00:34.9]} 25. Nge2 {[%clk
0:00:15.7]} 25... Nc5 {[%clk 0:00:31.2]} 26. Nd4 {[%clk 0:00:14.1]} 26... Bd7
{[%clk 0:00:31.2]} 27. Qe2 {[%clk 0:00:13.3]} 27... Nd3 {[%clk 0:00:31.6]} 28.
Ba1 {[%clk 0:00:12]} 28... b5 {[%clk 0:00:31.6]} 29. Nxe4 {[%clk 0:00:10.5]}
29... dxe4 {[%clk 0:00:31]} 30. Qxe4 {[%clk 0:00:10.2]} 30... Nxf2 {[%clk
0:00:28.4]} 31. Qe3 {[%clk 0:00:08.8]} 31... Nxd1 {[%clk 0:00:27.5]} 32. Rxf7
{[%clk 0:00:04.5]} 32... Nxe3 {[%clk 0:00:27.2]} 33. Rxe7 {[%clk 0:00:04.9]}
33... Nxg2 {[%clk 0:00:27.3]} 34. Rxd7 {[%clk 0:00:05]} 34... Rf7 {[%clk
0:00:19.5]} 35. Rxf7 {[%clk 0:00:03.1]} 35... Kxf7 {[%clk 0:00:19.5]} 36. Kxg2
{[%clk 0:00:04]} 36... Bxd4 {[%clk 0:00:16.8]} 37. Bxd4 {[%clk 0:00:04.9]} 37...
a4 {[%clk 0:00:16.5]} 38. bxa4 {[%clk 0:00:04]} 38... bxa4 {[%clk 0:00:16.5]}
39. Bc5 {[%clk 0:00:04.4]} 39... Rb3 {[%clk 0:00:16.3]} 40. h4 {[%clk
0:00:02.1]} 40... Kg6 {[%clk 0:00:16.6]} 41. Bd6 {[%clk 0:00:02.2]} 41... Kh5
{[%clk 0:00:16.9]} 42. Bf8 {[%clk 0:00:02.3]} 42... g6 {[%clk 0:00:16.8]} 43.
Be7 {[%clk 0:00:01.9]} 43... Kxh4 {[%clk 0:00:17]} 44. Kf2 {[%clk 0:00:02.4]}
44... Kh5 {[%clk 0:00:16.7]} 45. Ke2 {[%clk 0:00:02.6]} 45... h6 {[%clk
0:00:16.9]} 46. gxh6 {[%clk 0:00:02.4]} 46... Kxh6 {[%clk 0:00:17.8]} 47. Kf2
{[%clk 0:00:03.3]} 47... g5 {[%clk 0:00:17.7]} 48. Bf8+ {[%clk 0:00:03.8]} 48...
Kh5 {[%clk 0:00:17.9]} 49. Be7 {[%clk 0:00:04.4]} 49... g4 {[%clk 0:00:18.2]}
50. Kg2 {[%clk 0:00:05.3]} 50... Kg6 {[%clk 0:00:18.6]} 51. Kf2 {[%clk
0:00:03.6]} 51... Kf5 {[%clk 0:00:19.1]} 52. Bd6 {[%clk 0:00:03.9]} 52... Ke4
{[%clk 0:00:17.7]} 53. Kg2 {[%clk 0:00:04.4]} 53... Kd4 {[%clk 0:00:17.3]} 54.
Be7 {[%clk 0:00:04]} 54... Rf3 {[%clk 0:00:16.4]} 55. Bd6 {[%clk 0:00:02.7]}
55... Kc4 {[%clk 0:00:16.3]} 56. Bb4 {[%clk 0:00:03.2]} 56... Kb3 {[%clk
0:00:16.6]} 57. Bd6 {[%clk 0:00:03.5]} 57... Kb2 {[%clk 0:00:16.9]} 58. Bc5
{[%clk 0:00:03.7]} 58... Rxa3 {[%clk 0:00:16.9]} 59. Bxa3+ {[%clk 0:00:04.2]}
59... Kxa3 {[%clk 0:00:16.9]} 60. Kg3 {[%clk 0:00:05.1]} 60... Kb4 {[%clk
0:00:17.5]} 61. Kxg4 {[%clk 0:00:06]} 61... a3 {[%clk 0:00:18.4]} 0-1

[Event "*** Titled Tuesday Blitz"]
[Site "Chess.com"]
[Date "2020.11.10"]
[Round "5"]
[White "Alohamora11"]
[Black "kamilianin235"]
[Result "0-1"]
[WhiteElo "2454"]
[BlackElo "2186"]
[TimeControl "180+1"]
[EndTime "10:59:53 PST"]
[Termination "kamilianin235 won by checkmate"]

1. e4 {[%clk 0:03:00.9]} 1... c5 {[%clk 0:03:00.3]} 2. Nf3 {[%clk 0:03:00.1]}
2... d6 {[%clk 0:03:00.7]} 3. Bb5+ {[%clk 0:02:59.4]} 3... Nd7 {[%clk
0:02:59.8]} 4. d4 {[%clk 0:02:59.1]} 4... cxd4 {[%clk 0:03:00.7]} 5. Qxd4 {[%clk
0:02:59.9]} 5... a6 {[%clk 0:03:00.4]} 6. Bxd7+ {[%clk 0:02:59.9]} 6... Bxd7
{[%clk 0:03:01.3]} 7. c4 {[%clk 0:03:00.6]} 7... Nf6 {[%clk 0:03:01.3]} 8. Nc3
{[%clk 0:03:01.1]} 8... Rc8 {[%clk 0:03:00.9]} 9. Bg5 {[%clk 0:02:58.8]} 9... e6
{[%clk 0:02:59.5]} 10. O-O {[%clk 0:02:52.3]} 10... Be7 {[%clk 0:02:56.7]} 11.
Rac1 {[%clk 0:02:38.2]} 11... O-O {[%clk 0:02:51.2]} 12. b3 {[%clk 0:02:37.6]}
12... Qa5 {[%clk 0:02:40.8]} 13. Bd2 {[%clk 0:02:13.1]} 13... Qc7 {[%clk
0:02:22.2]} 14. Rfd1 {[%clk 0:02:10]} 14... Rfd8 {[%clk 0:02:18]} 15. h3 {[%clk
0:01:56.5]} 15... Bc6 {[%clk 0:02:15.8]} 16. Nd5 {[%clk 0:01:49.1]} 16... exd5
{[%clk 0:02:04.4]} 17. cxd5 {[%clk 0:01:48.6]} 17... Qb8 {[%clk 0:02:01.1]} 18.
dxc6 {[%clk 0:01:44.8]} 18... bxc6 {[%clk 0:02:02]} 19. Bf4 {[%clk 0:01:39.7]}
19... Ne8 {[%clk 0:01:56.3]} 20. Qa4 {[%clk 0:01:35.4]} 20... Qb6 {[%clk
0:01:54.1]} 21. Nd2 {[%clk 0:01:32.3]} 21... Nf6 {[%clk 0:01:44.6]} 22. Nc4
{[%clk 0:01:30.2]} 22... Qb5 {[%clk 0:01:33.5]} 23. Qxb5 {[%clk 0:01:09.7]}
23... cxb5 {[%clk 0:01:22]} 24. Bxd6 {[%clk 0:00:44.7]} 24... bxc4 {[%clk
0:00:52.6]} 25. Bxe7 {[%clk 0:00:44.5]} 25... Rxd1+ {[%clk 0:00:47.9]} 26. Rxd1
{[%clk 0:00:44.1]} 26... cxb3 {[%clk 0:00:46.3]} 27. Bxf6 {[%clk 0:00:42.8]}
27... gxf6 {[%clk 0:00:44.1]} 28. axb3 {[%clk 0:00:42.9]} 28... Rb8 {[%clk
0:00:41.1]} 29. Rd3 {[%clk 0:00:39.5]} 29... Kf8 {[%clk 0:00:38.9]} 30. f3
{[%clk 0:00:38.4]} 30... Ke7 {[%clk 0:00:39.1]} 31. Kf2 {[%clk 0:00:38.8]} 31...
Ke6 {[%clk 0:00:38.5]} 32. Ke3 {[%clk 0:00:38.8]} 32... Rb4 {[%clk 0:00:37.6]}
33. Kd2 {[%clk 0:00:38.7]} 33... Ke5 {[%clk 0:00:33.1]} 34. g3 {[%clk 0:00:31]}
34... Rb5 {[%clk 0:00:23.8]} 35. Kc3 {[%clk 0:00:28.1]} 35... Ke6 {[%clk
0:00:17.9]} 36. b4 {[%clk 0:00:26.1]} 36... Rb7 {[%clk 0:00:15.7]} 37. Rd5
{[%clk 0:00:24.7]} 37... Rc7+ {[%clk 0:00:15.1]} 38. Rc5 {[%clk 0:00:25.3]}
38... Rxc5+ {[%clk 0:00:12.1]} 39. bxc5 {[%clk 0:00:26.2]} 39... Kd7 {[%clk
0:00:12]} 40. f4 {[%clk 0:00:16.8]} 40... Kc6 {[%clk 0:00:11.7]} 41. Kc4 {[%clk
0:00:17.1]} 41... a5 {[%clk 0:00:12]} 42. g4 {[%clk 0:00:14.7]} 42... a4 {[%clk
0:00:11.7]} 43. g5 {[%clk 0:00:13.1]} 43... fxg5 {[%clk 0:00:11.5]} 44. fxg5
{[%clk 0:00:14]} 44... a3 {[%clk 0:00:11.7]} 45. Kb3 {[%clk 0:00:14.5]} 45...
Kxc5 {[%clk 0:00:12.2]} 46. Kxa3 {[%clk 0:00:15.1]} 46... Kd4 {[%clk 0:00:12.8]}
47. Kb4 {[%clk 0:00:15]} 47... Kxe4 {[%clk 0:00:13.3]} 48. Kc4 {[%clk
0:00:15.9]} 48... Kf4 {[%clk 0:00:12.6]} 49. Kd4 {[%clk 0:00:16.5]} 49... Kxg5
{[%clk 0:00:12.4]} 50. Ke4 {[%clk 0:00:17.3]} 50... Kh4 {[%clk 0:00:11.6]} 51.
Kf3 {[%clk 0:00:18.2]} 51... Kxh3 {[%clk 0:00:11.6]} 52. Kf4 {[%clk 0:00:19.1]}
52... h5 {[%clk 0:00:09.7]} 53. Kf3 {[%clk 0:00:20]} 53... f5 {[%clk 0:00:08.7]}
54. Kf4 {[%clk 0:00:20.4]} 54... Kh4 {[%clk 0:00:07.6]} 55. Kf3 {[%clk
0:00:21.3]} 55... Kg5 {[%clk 0:00:07.6]} 56. Kg3 {[%clk 0:00:22.2]} 56... f4+
{[%clk 0:00:07.9]} 57. Kf3 {[%clk 0:00:23.1]} 57... h4 {[%clk 0:00:08]} 58. Kf2
{[%clk 0:00:24]} 58... Kg4 {[%clk 0:00:08.4]} 59. Kg2 {[%clk 0:00:24.9]} 59...
f3+ {[%clk 0:00:08.7]} 60. Kh2 {[%clk 0:00:25.8]} 60... h3 {[%clk 0:00:08]} 61.
Kg1 {[%clk 0:00:26.2]} 61... Kg3 {[%clk 0:00:07.2]} 62. Kh1 {[%clk 0:00:26.8]}
62... Kf4 {[%clk 0:00:06.9]} 63. Kg1 {[%clk 0:00:26.9]} 63... Kg4 {[%clk
0:00:07.2]} 64. Kf2 {[%clk 0:00:26.9]} 64... h2 {[%clk 0:00:06.6]} 65. Kf1
{[%clk 0:00:27.2]} 65... h1=Q+ {[%clk 0:00:06.8]} 66. Kf2 {[%clk 0:00:28.1]}
66... Qg2+ {[%clk 0:00:07.2]} 67. Ke1 {[%clk 0:00:27.8]} 67... Qe2# {[%clk
0:00:07.5]} 0-1